[Event "*** SCC Grand Prix: Titled Tuesday Blitz"]
[Site "Chess.com"]
[Date "2020.09.08"]
[Round "10"]
[White "lucachess49"]
[Black "nitpicker"]
[Result "1-0"]
[WhiteElo "2402"]
[BlackElo "2208"]
[TimeControl "180+1"]
[EndTime "11:58:15 PDT"]
[Termination "lucachess49 won on time"]

1. d4 {[%clk 0:02:59.6]} 1... Nf6 {[%clk 0:02:59]} 2. c4 {[%clk 0:02:59.4]} 2...
e6 {[%clk 0:02:58.6]} 3. Nc3 {[%clk 0:02:59.9]} 3... Bb4 {[%clk 0:02:58]} 4. e3
{[%clk 0:03:00.2]} 4... d5 {[%clk 0:02:57.3]} 5. Ne2 {[%clk 0:02:56.8]} 5... c6
{[%clk 0:02:52.3]} 6. a3 {[%clk 0:02:56.4]} 6... Bd6 {[%clk 0:02:51.5]} 7. Ng3
{[%clk 0:02:55.6]} 7... O-O {[%clk 0:02:48]} 8. Be2 {[%clk 0:02:51.7]} 8... Nbd7
{[%clk 0:02:47.5]} 9. O-O {[%clk 0:02:49.9]} 9... Qe7 {[%clk 0:02:41.5]} 10.
cxd5 {[%clk 0:02:49.9]} 10... cxd5 {[%clk 0:02:37.6]} 11. Bd2 {[%clk 0:02:49.6]}
11... a6 {[%clk 0:02:34.6]} 12. Rc1 {[%clk 0:02:43.5]} 12... b6 {[%clk 0:02:34]}
13. Na4 {[%clk 0:02:42.7]} 13... Bb7 {[%clk 0:02:33.6]} 14. f4 {[%clk
0:02:38.9]} 14... Ne4 {[%clk 0:02:25.5]} 15. Nxe4 {[%clk 0:02:37]} 15... dxe4
{[%clk 0:02:25]} 16. Nc3 {[%clk 0:02:35.3]} 16... b5 {[%clk 0:02:19.2]} 17. Qc2
{[%clk 0:02:34.4]} 17... Rac8 {[%clk 0:02:18]} 18. Qb1 {[%clk 0:02:33.8]} 18...
Nf6 {[%clk 0:02:16.4]} 19. Be1 {[%clk 0:02:24.1]} 19... Bd5 {[%clk 0:02:07.1]}
20. Bh4 {[%clk 0:02:23]} 20... Qb7 {[%clk 0:02:05.8]} 21. h3 {[%clk 0:01:18]}
21... Be7 {[%clk 0:02:00.1]} 22. Qc2 {[%clk 0:00:58.1]} 22... Rc7 {[%clk
0:01:57.4]} 23. Qd2 {[%clk 0:00:57.2]} 23... Rfc8 {[%clk 0:01:49]} 24. Kh2
{[%clk 0:00:44.4]} 24... Ne8 {[%clk 0:01:29]} 25. Bxe7 {[%clk 0:00:41.5]} 25...
Rxe7 {[%clk 0:01:29.8]} 26. Nxd5 {[%clk 0:00:35.2]} 26... exd5 {[%clk
0:01:29.3]} 27. Rc5 {[%clk 0:00:35.3]} 27... Rec7 {[%clk 0:01:20.3]} 28. Rfc1
{[%clk 0:00:31.7]} 28... Nd6 {[%clk 0:01:16.1]} 29. b4 {[%clk 0:00:28.4]} 29...
Nc4 {[%clk 0:01:11.8]} 30. Bxc4 {[%clk 0:00:28]} 30... bxc4 {[%clk 0:01:06.5]}
31. Qe2 {[%clk 0:00:20.9]} 31... Rxc5 {[%clk 0:00:59.4]} 32. dxc5 {[%clk
0:00:16.4]} 32... Qc6 {[%clk 0:00:58.2]} 33. Qd2 {[%clk 0:00:15.8]} 33... Kf8
{[%clk 0:00:52.5]} 34. Qd4 {[%clk 0:00:15.3]} 34... f6 {[%clk 0:00:52.3]} 35.
Rd1 {[%clk 0:00:13.7]} 35... Rd8 {[%clk 0:00:52.7]} 36. g4 {[%clk 0:00:13.9]}
36... h6 {[%clk 0:00:51]} 37. Kg3 {[%clk 0:00:10.9]} 37... Qa4 {[%clk
0:00:49.1]} 38. Rd2 {[%clk 0:00:06.9]} 38... Qb3 {[%clk 0:00:45.8]} 39. c6
{[%clk 0:00:06.4]} 39... c3 {[%clk 0:00:38.3]} 40. c7 {[%clk 0:00:03.7]} 40...
Rc8 {[%clk 0:00:38.2]} 41. Qc5+ {[%clk 0:00:04.1]} 41... Kg8 {[%clk 0:00:36]}
42. Qxd5+ {[%clk 0:00:04.2]} 42... Qxd5 {[%clk 0:00:35.3]} 43. Rxd5 {[%clk
0:00:04.8]} 43... Rxc7 {[%clk 0:00:35.7]} 44. Rd1 {[%clk 0:00:04.9]} 44... c2
{[%clk 0:00:35.4]} 45. Rc1 {[%clk 0:00:05.3]} 45... Rc3 {[%clk 0:00:35.9]} 46.
Kf2 {[%clk 0:00:04.9]} 46... Kf7 {[%clk 0:00:34.5]} 47. a4 {[%clk 0:00:04.6]}
47... Ke6 {[%clk 0:00:34.1]} 48. b5 {[%clk 0:00:04.8]} 48... axb5 {[%clk
0:00:34.4]} 49. axb5 {[%clk 0:00:05.7]} 49... Kd6 {[%clk 0:00:34.6]} 50. Ke2
{[%clk 0:00:05.9]} 50... Kc5 {[%clk 0:00:34.9]} 51. Kd2 {[%clk 0:00:06.2]} 51...
Rd3+ {[%clk 0:00:34.7]} 52. Kxc2 {[%clk 0:00:05.5]} 52... Rxe3 {[%clk 0:00:35]}
53. Kd2+ {[%clk 0:00:05.3]} 53... Kd4 {[%clk 0:00:33.1]} 54. Rc4+ {[%clk
0:00:05.5]} 54... Kxc4 {[%clk 0:00:31.4]} 55. Kxe3 {[%clk 0:00:06.1]} 55... Kxb5
{[%clk 0:00:31.5]} 56. Kxe4 {[%clk 0:00:06.5]} 56... g6 {[%clk 0:00:21.5]} 57.
h4 {[%clk 0:00:05.5]} 57... Kc6 {[%clk 0:00:20.9]} 58. h5 {[%clk 0:00:05.8]}
58... gxh5 {[%clk 0:00:18.2]} 59. gxh5 {[%clk 0:00:05.5]} 59... Kd6 {[%clk
0:00:17.4]} 60. Kf5 {[%clk 0:00:05.7]} 60... Ke7 {[%clk 0:00:17.5]} 61. Kg6
{[%clk 0:00:05.9]} 61... f5 {[%clk 0:00:14.2]} 62. Kxf5 {[%clk 0:00:05.7]} 62...
Kf7 {[%clk 0:00:14.2]} 63. Ke5 {[%clk 0:00:05.8]} 63... Ke7 {[%clk 0:00:14.3]}
64. f5 {[%clk 0:00:05.8]} 64... Kf7 {[%clk 0:00:14.2]} 65. f6 {[%clk 0:00:06.1]}
65... Kf8 {[%clk 0:00:12.7]} 66. Kf5 {[%clk 0:00:06.2]} 66... Kf7 {[%clk
0:00:12.7]} 67. Ke5 {[%clk 0:00:06.5]} 67... Kf8 {[%clk 0:00:12.9]} 68. Ke6
{[%clk 0:00:06.6]} 68... Ke8 {[%clk 0:00:12.8]} 69. Ke5 {[%clk 0:00:05.7]} 69...
Kf7 {[%clk 0:00:12.7]} 70. Kf5 {[%clk 0:00:05.9]} 70... Kf8 {[%clk 0:00:12.9]}
71. Kg6 {[%clk 0:00:06.4]} 71... Ke8 {[%clk 0:00:12.9]} 72. Kxh6 {[%clk
0:00:06.8]} 72... Kf7 {[%clk 0:00:13.4]} 73. Kg5 {[%clk 0:00:07.3]} 73... Kg8
{[%clk 0:00:13.6]} 74. Kg6 {[%clk 0:00:07.6]} 74... Kf8 {[%clk 0:00:13.1]} 75.
f7 {[%clk 0:00:07.9]} 75... Ke7 {[%clk 0:00:13]} 76. Kg7 {[%clk 0:00:08.8]}
76... Ke6 {[%clk 0:00:13.7]} 77. f8=Q {[%clk 0:00:09.1]} 1-0

[Event "*** SCC Grand Prix: Titled Tuesday Blitz"]
[Site "Chess.com"]
[Date "2020.09.08"]
[Round "10"]
[White "kingnb"]
[Black "XDPS"]
[Result "1-0"]
[WhiteElo "2639"]
[BlackElo "2772"]
[TimeControl "180+1"]
[EndTime "11:58:17 PDT"]
[Termination "kingnb won on time"]

1. d4 {[%clk 0:02:39.3]} 1... d5 {[%clk 0:02:56.3]} 2. Nf3 {[%clk 0:02:40.2]}
2... Nf6 {[%clk 0:02:56.1]} 3. e3 {[%clk 0:02:41.1]} 3... Bf5 {[%clk 0:02:55.7]}
4. c4 {[%clk 0:02:41.4]} 4... c6 {[%clk 0:02:55.8]} 5. cxd5 {[%clk 0:02:41.3]}
5... cxd5 {[%clk 0:02:55.4]} 6. Nc3 {[%clk 0:02:42.2]} 6... Nc6 {[%clk
0:02:55.8]} 7. Ne5 {[%clk 0:02:42.7]} 7... e6 {[%clk 0:02:45.1]} 8. g4 {[%clk
0:02:42.3]} 8... Bg6 {[%clk 0:02:36]} 9. h4 {[%clk 0:02:41.2]} 9... h5 {[%clk
0:02:29.7]} 10. Nxg6 {[%clk 0:02:40]} 10... fxg6 {[%clk 0:02:30.6]} 11. g5
{[%clk 0:02:40.6]} 11... Nh7 {[%clk 0:02:16.4]} 12. Bd3 {[%clk 0:02:40.4]} 12...
Ne7 {[%clk 0:02:14.4]} 13. Bd2 {[%clk 0:02:05.7]} 13... a6 {[%clk 0:02:12.3]}
14. Qc2 {[%clk 0:02:01.2]} 14... Kf7 {[%clk 0:02:12]} 15. O-O-O {[%clk
0:02:00.5]} 15... Rc8 {[%clk 0:02:09.9]} 16. Kb1 {[%clk 0:02:00.4]} 16... Nf5
{[%clk 0:02:08.8]} 17. Qb3 {[%clk 0:01:53.9]} 17... b5 {[%clk 0:02:06.2]} 18.
Ne2 {[%clk 0:01:44.3]} 18... Bd6 {[%clk 0:02:05.4]} 19. Rdg1 {[%clk 0:01:35]}
19... Nf8 {[%clk 0:02:04.8]} 20. e4 {[%clk 0:01:27.7]} 20... dxe4 {[%clk
0:02:01.1]} 21. Bxe4 {[%clk 0:01:28.6]} 21... Bb8 {[%clk 0:01:56.8]} 22. Bc3
{[%clk 0:01:19.8]} 22... Nd7 {[%clk 0:01:52.9]} 23. d5 {[%clk 0:01:16.3]} 23...
Nc5 {[%clk 0:01:48.5]} 24. dxe6+ {[%clk 0:01:16.3]} 24... Ke7 {[%clk 0:01:40.1]}
25. Qc2 {[%clk 0:01:07.2]} 25... Rf8 {[%clk 0:01:28.1]} 26. Rd1 {[%clk
0:01:02.3]} 26... Qb6 {[%clk 0:01:26.6]} 27. Bd5 {[%clk 0:00:38.2]} 27... b4
{[%clk 0:01:25]} 28. Bd4 {[%clk 0:00:31.6]} 28... Bd6 {[%clk 0:01:05.4]} 29.
Rhe1 {[%clk 0:00:16.2]} 29... a5 {[%clk 0:01:04.3]} 30. Qd2 {[%clk 0:00:15.6]}
30... a4 {[%clk 0:01:01.3]} 31. Nf4 {[%clk 0:00:15.7]} 31... Bxf4 {[%clk
0:00:58.7]} 32. Qxf4 {[%clk 0:00:16.6]} 32... b3 {[%clk 0:00:52.7]} 33. a3
{[%clk 0:00:16.5]} 33... Rfd8 {[%clk 0:00:39.6]} 34. Bc3 {[%clk 0:00:16.6]}
34... Qb5 {[%clk 0:00:23.3]} 35. Bc4 {[%clk 0:00:15.2]} 35... Qc6 {[%clk
0:00:20.5]} 36. Bb4 {[%clk 0:00:15.6]} 36... Ke8 {[%clk 0:00:19.6]} 37. e7
{[%clk 0:00:13.7]} 37... Rxd1+ {[%clk 0:00:19.3]} 38. Rxd1 {[%clk 0:00:14.3]}
38... Kxe7 {[%clk 0:00:18.6]} 39. Qe5+ {[%clk 0:00:14.6]} 39... Kf8 {[%clk
0:00:18.6]} 40. Bxc5+ {[%clk 0:00:15.1]} 40... Qxc5 {[%clk 0:00:19.1]} 41. Rd8+
{[%clk 0:00:15.7]} 41... Rxd8 {[%clk 0:00:19.6]} 42. Qxc5+ {[%clk 0:00:16.4]}
42... Ne7 {[%clk 0:00:20.5]} 43. Kc1 {[%clk 0:00:16.6]} 43... Rc8 {[%clk
0:00:20.1]} 44. Qd4 {[%clk 0:00:16.7]} 44... Ke8 {[%clk 0:00:20.7]} 45. Kb1
{[%clk 0:00:10]} 45... Nf5 {[%clk 0:00:19.7]} 46. Bb5+ {[%clk 0:00:10.2]} 46...
Ke7 {[%clk 0:00:18.1]} 47. Qxa4 {[%clk 0:00:11.1]} 47... Nd6 {[%clk 0:00:15.3]}
48. Qxb3 {[%clk 0:00:11]} 48... Rb8 {[%clk 0:00:15.7]} 49. Qe3+ {[%clk
0:00:11.2]} 49... Kf7 {[%clk 0:00:16.2]} 50. Bd3 {[%clk 0:00:12.1]} 50... Rd8
{[%clk 0:00:14.9]} 51. Qf4+ {[%clk 0:00:12.6]} 51... Kg8 {[%clk 0:00:15]} 52.
Bxg6 {[%clk 0:00:13.1]} 52... Kh8 {[%clk 0:00:14]} 53. Bxh5 {[%clk 0:00:12.9]}
53... Nb5 {[%clk 0:00:14.6]} 54. Be2 {[%clk 0:00:12.5]} 54... Nd4 {[%clk
0:00:15]} 55. Bd3 {[%clk 0:00:12.3]} 55... Nb3 {[%clk 0:00:15.5]} 56. Ka2 {[%clk
0:00:10.3]} 56... Nc5 {[%clk 0:00:14.8]} 57. Bc2 {[%clk 0:00:09.9]} 57... Ne6
{[%clk 0:00:14.7]} 58. Qf5 {[%clk 0:00:10.1]} 58... Nf8 {[%clk 0:00:15.1]} 59.
a4 {[%clk 0:00:09.2]} 59... Rb8 {[%clk 0:00:15.6]} 60. a5 {[%clk 0:00:09.3]}
60... Ra8 {[%clk 0:00:16.1]} 61. b4 {[%clk 0:00:09.6]} 61... Kg8 {[%clk
0:00:15.3]} 62. g6 {[%clk 0:00:09.5]} 62... Kh8 {[%clk 0:00:15.5]} 63. Qd5
{[%clk 0:00:09.3]} 63... Rb8 {[%clk 0:00:14.9]} 64. a6 {[%clk 0:00:09.3]} 64...
Rb6 {[%clk 0:00:14.7]} 65. a7 {[%clk 0:00:09.6]} 65... Ra6+ {[%clk 0:00:15]} 66.
Kb2 {[%clk 0:00:10.5]} 66... Nxg6 {[%clk 0:00:15.1]} 67. b5 {[%clk 0:00:11.4]}
67... Rxa7 {[%clk 0:00:14.7]} 68. Bxg6 {[%clk 0:00:11.3]} 68... Ra2+ {[%clk
0:00:10]} 69. Kc3 {[%clk 0:00:11.8]} 69... Ra3+ {[%clk 0:00:09.2]} 70. Kd4
{[%clk 0:00:12.3]} 70... Ra4+ {[%clk 0:00:07.6]} 71. Ke5 {[%clk 0:00:12.5]}
71... Re4+ {[%clk 0:00:03.3]} 72. Qxe4 {[%clk 0:00:12.6]} 1-0

[Event "*** SCC Grand Prix: Titled Tuesday Blitz"]
[Site "Chess.com"]
[Date "2020.09.08"]
[Round "10"]
[White "winniethepooh04"]
[Black "zmeeed67"]
[Result "1-0"]
[WhiteElo "2231"]
[BlackElo "2396"]
[TimeControl "180+1"]
[EndTime "11:58:36 PDT"]
[Termination "winniethepooh04 won on time"]

1. e4 {[%clk 0:02:59.9]} 1... Nc6 {[%clk 0:02:59.9]} 2. Nf3 {[%clk 0:02:58.7]}
2... d6 {[%clk 0:03:00]} 3. d4 {[%clk 0:02:59.1]} 3... Nf6 {[%clk 0:02:59.9]} 4.
Nc3 {[%clk 0:02:58.7]} 4... Bg4 {[%clk 0:02:59.8]} 5. Be2 {[%clk 0:02:57.9]}
5... e5 {[%clk 0:02:59.8]} 6. dxe5 {[%clk 0:02:55.2]} 6... dxe5 {[%clk
0:02:59.4]} 7. Qxd8+ {[%clk 0:02:54.4]} 7... Rxd8 {[%clk 0:02:59.9]} 8. O-O
{[%clk 0:02:52.3]} 8... Bb4 {[%clk 0:02:59.7]} 9. Bg5 {[%clk 0:02:48.6]} 9...
Bxc3 {[%clk 0:02:55.2]} 10. bxc3 {[%clk 0:02:48.9]} 10... Rd6 {[%clk 0:02:50.4]}
11. Bxf6 {[%clk 0:02:38.3]} 11... gxf6 {[%clk 0:02:50.2]} 12. Rab1 {[%clk
0:02:37.9]} 12... b6 {[%clk 0:02:49.7]} 13. h3 {[%clk 0:02:28.1]} 13... Bxf3
{[%clk 0:02:45.8]} 14. Bxf3 {[%clk 0:02:27.8]} 14... Ke7 {[%clk 0:02:46.3]} 15.
Be2 {[%clk 0:02:24.3]} 15... Rhd8 {[%clk 0:02:43.9]} 16. Bd3 {[%clk 0:02:24.5]}
16... Na5 {[%clk 0:02:43.6]} 17. f4 {[%clk 0:02:24.3]} 17... c5 {[%clk
0:02:41.4]} 18. fxe5 {[%clk 0:02:24]} 18... fxe5 {[%clk 0:02:41.2]} 19. Rf5
{[%clk 0:02:24.1]} 19... f6 {[%clk 0:02:15.5]} 20. Rh5 {[%clk 0:02:22.3]} 20...
Rh8 {[%clk 0:02:08.9]} 21. c4 {[%clk 0:02:18.6]} 21... h6 {[%clk 0:02:03.2]} 22.
Rf1 {[%clk 0:02:18.6]} 22... Nc6 {[%clk 0:02:00]} 23. Rf3 {[%clk 0:02:17]} 23...
Nd4 {[%clk 0:01:55.9]} 24. Rg3 {[%clk 0:02:16.9]} 24... Kf7 {[%clk 0:01:53.2]}
25. Re3 {[%clk 0:02:04.9]} 25... Ne6 {[%clk 0:01:52.3]} 26. g3 {[%clk 0:02:03]}
26... Ng7 {[%clk 0:01:35.4]} 27. Rh4 {[%clk 0:01:58]} 27... Rdd8 {[%clk
0:01:31.2]} 28. Kf2 {[%clk 0:01:55.9]} 28... Rdg8 {[%clk 0:01:30]} 29. Be2
{[%clk 0:01:46.1]} 29... Ne6 {[%clk 0:01:28.3]} 30. c3 {[%clk 0:01:43.9]} 30...
Ng5 {[%clk 0:01:21]} 31. Rh5 {[%clk 0:01:32.2]} 31... Rd8 {[%clk 0:01:17]} 32.
h4 {[%clk 0:01:31.3]} 32... Ne6 {[%clk 0:01:16.6]} 33. Rf5 {[%clk 0:01:28]}
33... Ng7 {[%clk 0:01:15.8]} 34. Rff3 {[%clk 0:01:22.4]} 34... Rd2 {[%clk
0:01:14.8]} 35. Rd3 {[%clk 0:01:22.3]} 35... Rd8 {[%clk 0:01:12.5]} 36. Rxd8
{[%clk 0:01:19.5]} 36... Rxd8 {[%clk 0:01:11.5]} 37. Rd3 {[%clk 0:01:17.9]}
37... Rxd3 {[%clk 0:01:10.9]} 38. Bxd3 {[%clk 0:01:18.8]} 38... Ke6 {[%clk
0:01:08.4]} 39. g4 {[%clk 0:01:17.3]} 39... Ne8 {[%clk 0:01:04.6]} 40. Kf3
{[%clk 0:01:14.6]} 40... Nd6 {[%clk 0:01:04.5]} 41. a3 {[%clk 0:01:08.5]} 41...
a6 {[%clk 0:01:04.1]} 42. a4 {[%clk 0:01:08.3]} 42... Nb7 {[%clk 0:01:04.1]} 43.
Ke3 {[%clk 0:00:42.9]} 43... Nd6 {[%clk 0:01:02.8]} 44. Kf3 {[%clk 0:00:42.8]}
44... Kf7 {[%clk 0:01:01.8]} 45. Kg3 {[%clk 0:00:41.2]} 45... Kg6 {[%clk
0:01:01.7]} 46. Kf3 {[%clk 0:00:40.3]} 46... Ne8 {[%clk 0:00:53.5]} 47. Kg3
{[%clk 0:00:40.1]} 47... Ng7 {[%clk 0:00:53.5]} 48. Be2 {[%clk 0:00:39.2]} 48...
Ne6 {[%clk 0:00:51.1]} 49. Bd1 {[%clk 0:00:36.2]} 49... Nf4 {[%clk 0:00:50]} 50.
Kf3 {[%clk 0:00:34.1]} 50... Nd3 {[%clk 0:00:48.4]} 51. Bb3 {[%clk 0:00:32.9]}
51... Nf4 {[%clk 0:00:28.7]} 52. Bd1 {[%clk 0:00:31.6]} 52... h5 {[%clk
0:00:25.3]} 53. Kg3 {[%clk 0:00:30.7]} 53... Nd3 {[%clk 0:00:19.6]} 54. gxh5+
{[%clk 0:00:29.6]} 54... Kh6 {[%clk 0:00:19.5]} 55. Bc2 {[%clk 0:00:22.6]} 55...
Nb2 {[%clk 0:00:18.4]} 56. Bb3 {[%clk 0:00:21.1]} 56... Nd3 {[%clk 0:00:16.8]}
57. Bc2 {[%clk 0:00:20.8]} 57... Nb2 {[%clk 0:00:16]} 58. Bb3 {[%clk 0:00:21.1]}
58... Kxh5 {[%clk 0:00:16.2]} 59. Kh3 {[%clk 0:00:20.8]} 59... Nd3 {[%clk
0:00:15.8]} 60. Kg3 {[%clk 0:00:20.6]} 60... Nf4 {[%clk 0:00:15.7]} 61. Bd1+
{[%clk 0:00:19.7]} 61... Kh6 {[%clk 0:00:16.1]} 62. Bc2 {[%clk 0:00:18.6]} 62...
Ne2+ {[%clk 0:00:14.2]} 63. Kg4 {[%clk 0:00:16.8]} 63... Nxc3 {[%clk 0:00:10.3]}
64. Kf5 {[%clk 0:00:17.3]} 64... Kh5 {[%clk 0:00:10.5]} 65. Kxf6 {[%clk
0:00:17]} 65... Kxh4 {[%clk 0:00:11.1]} 66. Kxe5 {[%clk 0:00:17.6]} 66... Kg3
{[%clk 0:00:10.4]} 67. Kd6 {[%clk 0:00:17.6]} 67... Kf4 {[%clk 0:00:08.3]} 68.
e5 {[%clk 0:00:18]} 68... b5 {[%clk 0:00:08.7]} 69. cxb5 {[%clk 0:00:14.4]}
69... axb5 {[%clk 0:00:08.6]} 70. a5 {[%clk 0:00:14.8]} 70... b4 {[%clk
0:00:08.4]} 71. e6 {[%clk 0:00:14.6]} 71... Nb5+ {[%clk 0:00:07.8]} 72. Kd7
{[%clk 0:00:14.8]} 72... b3 {[%clk 0:00:06.5]} 73. Bxb3 {[%clk 0:00:13]} 73...
Nd4 {[%clk 0:00:06.7]} 74. Bd5 {[%clk 0:00:12.5]} 74... Nf5 {[%clk 0:00:03.1]}
75. a6 {[%clk 0:00:12]} 75... Ke5 {[%clk 0:00:01.5]} 76. Ba2 {[%clk 0:00:10]}
76... c4 {[%clk 0:00:01]} 77. Bxc4 {[%clk 0:00:08.8]} 77... Nd6 {[%clk
0:00:01.4]} 78. e7 {[%clk 0:00:06.5]} 1-0

[Event "*** SCC Grand Prix: Titled Tuesday Blitz"]
[Site "Chess.com"]
[Date "2020.09.08"]
[Round "10"]
[White "MariaFominykh"]
[Black "poppy73"]
[Result "1-0"]
[WhiteElo "2351"]
[BlackElo "2249"]
[TimeControl "180+1"]
[EndTime "11:59:02 PDT"]
[Termination "MariaFominykh won by checkmate"]

1. Nf3 {[%clk 0:03:00.9]} 1... Nf6 {[%clk 0:02:59.3]} 2. g3 {[%clk 0:03:01.8]}
2... g6 {[%clk 0:02:59.7]} 3. Bg2 {[%clk 0:03:02.5]} 3... Bg7 {[%clk 0:03:00.2]}
4. O-O {[%clk 0:03:03.2]} 4... O-O {[%clk 0:03:00.6]} 5. d3 {[%clk 0:03:02.1]}
5... d6 {[%clk 0:03:01]} 6. e4 {[%clk 0:03:02.1]} 6... e5 {[%clk 0:03:00.9]} 7.
c3 {[%clk 0:02:59.5]} 7... Nc6 {[%clk 0:02:53]} 8. b4 {[%clk 0:02:58.3]} 8... a5
{[%clk 0:02:47.7]} 9. b5 {[%clk 0:02:57.6]} 9... Ne7 {[%clk 0:02:47.9]} 10. a4
{[%clk 0:02:57.8]} 10... c6 {[%clk 0:02:47.3]} 11. Na3 {[%clk 0:02:53.6]} 11...
Qc7 {[%clk 0:02:44.2]} 12. Nc4 {[%clk 0:02:36.6]} 12... Bd7 {[%clk 0:02:36.1]}
13. Ba3 {[%clk 0:02:33]} 13... Nc8 {[%clk 0:02:22.7]} 14. Rb1 {[%clk 0:02:21.2]}
14... Re8 {[%clk 0:02:14.3]} 15. b6 {[%clk 0:02:13.6]} 15... Qb8 {[%clk
0:02:14]} 16. Re1 {[%clk 0:02:10.7]} 16... Ra6 {[%clk 0:02:04]} 17. d4 {[%clk
0:01:55]} 17... exd4 {[%clk 0:02:00.9]} 18. Nxd4 {[%clk 0:01:54.1]} 18... d5
{[%clk 0:01:39.1]} 19. exd5 {[%clk 0:01:52.5]} 19... Rxe1+ {[%clk 0:01:37]} 20.
Qxe1 {[%clk 0:01:51.3]} 20... cxd5 {[%clk 0:01:37.6]} 21. Ne3 {[%clk 0:01:12.6]}
21... Rxb6 {[%clk 0:00:51.4]} 22. Nxd5 {[%clk 0:01:02]} 22... Nxd5 {[%clk
0:00:45.1]} 23. Bxd5 {[%clk 0:01:01.1]} 23... Bxa4 {[%clk 0:00:36.3]} 24. Rxb6
{[%clk 0:00:50.5]} 24... Nxb6 {[%clk 0:00:36.4]} 25. Bxf7+ {[%clk 0:00:50.8]}
25... Kh8 {[%clk 0:00:31.4]} 26. Qe6 {[%clk 0:00:46.4]} 26... Nd7 {[%clk
0:00:08.1]} 27. Bd6 {[%clk 0:00:38.7]} 27... Qd8 {[%clk 0:00:06.6]} 28. Be7
{[%clk 0:00:20.4]} 28... Qb6 {[%clk 0:00:06]} 29. Bd6 {[%clk 0:00:16.3]} 29...
Qd8 {[%clk 0:00:05.8]} 30. Be7 {[%clk 0:00:16]} 30... Qb6 {[%clk 0:00:05.8]} 31.
Qxb6 {[%clk 0:00:14.6]} 31... Nxb6 {[%clk 0:00:05.1]} 32. Bd8 {[%clk 0:00:14.9]}
32... Nd7 {[%clk 0:00:03.4]} 33. Bxa5 {[%clk 0:00:14.9]} 33... Bc6 {[%clk
0:00:03.2]} 34. Nxc6 {[%clk 0:00:13.9]} 34... bxc6 {[%clk 0:00:03.4]} 35. Kf1
{[%clk 0:00:13.8]} 35... Ne5 {[%clk 0:00:03.2]} 36. Be6 {[%clk 0:00:13.8]} 36...
Bf6 {[%clk 0:00:03]} 37. Ke2 {[%clk 0:00:14]} 37... Kg7 {[%clk 0:00:03.1]} 38.
f4 {[%clk 0:00:14.2]} 38... Nf7 {[%clk 0:00:03.2]} 39. Bd7 {[%clk 0:00:14.1]}
39... c5 {[%clk 0:00:02.8]} 40. Kd3 {[%clk 0:00:14.3]} 40... Nd6 {[%clk
0:00:02.9]} 41. Be6 {[%clk 0:00:14.2]} 41... Kf8 {[%clk 0:00:02.4]} 42. Bc7
{[%clk 0:00:14.4]} 42... Ke7 {[%clk 0:00:02.3]} 43. Ba2 {[%clk 0:00:13.5]} 43...
Kd7 {[%clk 0:00:02.1]} 44. Bb6 {[%clk 0:00:12.6]} 44... Kc6 {[%clk 0:00:02.1]}
45. Ba5 {[%clk 0:00:12.3]} 45... Nb5 {[%clk 0:00:02.1]} 46. Bc4 {[%clk
0:00:10.7]} 46... Nd6 {[%clk 0:00:02.2]} 47. Be6 {[%clk 0:00:10.2]} 47... Kb5
{[%clk 0:00:02.6]} 48. Bc7 {[%clk 0:00:09.4]} 48... Kc6 {[%clk 0:00:02.8]} 49.
Bxd6 {[%clk 0:00:09.1]} 49... Kxd6 {[%clk 0:00:03.1]} 50. Bg8 {[%clk 0:00:09.3]}
50... Bg7 {[%clk 0:00:03.3]} 51. Bxh7 {[%clk 0:00:08.9]} 51... Bf6 {[%clk
0:00:03.1]} 52. Bxg6 {[%clk 0:00:09.1]} 52... Bg7 {[%clk 0:00:03.6]} 53. h4
{[%clk 0:00:09.3]} 53... Bf6 {[%clk 0:00:03.7]} 54. h5 {[%clk 0:00:09.2]} 54...
Bg7 {[%clk 0:00:04]} 55. g4 {[%clk 0:00:09.4]} 55... Ke7 {[%clk 0:00:04.1]} 56.
g5 {[%clk 0:00:09.7]} 56... Bh8 {[%clk 0:00:03.9]} 57. Kc4 {[%clk 0:00:09.9]}
57... Kf8 {[%clk 0:00:03.3]} 58. h6 {[%clk 0:00:09.7]} 58... Kg8 {[%clk
0:00:03]} 59. Kxc5 {[%clk 0:00:09.9]} 59... Bxc3 {[%clk 0:00:02.6]} 60. Kd5
{[%clk 0:00:09.7]} 60... Bd2 {[%clk 0:00:02]} 61. Ke4 {[%clk 0:00:09.1]} 61...
Bc3 {[%clk 0:00:02.1]} 62. Kf5 {[%clk 0:00:07.8]} 62... Bd2 {[%clk 0:00:02.1]}
63. Kg4 {[%clk 0:00:07.8]} 63... Kh8 {[%clk 0:00:01.4]} 64. Be4 {[%clk
0:00:07.7]} 64... Kg8 {[%clk 0:00:01.4]} 65. g6 {[%clk 0:00:07.6]} 65... Bc3
{[%clk 0:00:01.7]} 66. Bd5+ {[%clk 0:00:06.7]} 66... Kh8 {[%clk 0:00:01.2]} 67.
g7+ {[%clk 0:00:06.7]} 67... Bxg7 {[%clk 0:00:01.3]} 68. hxg7+ {[%clk
0:00:07.2]} 68... Kxg7 {[%clk 0:00:02.2]} 69. Kg5 {[%clk 0:00:07.5]} 69... Kf8
{[%clk 0:00:02.3]} 70. f5 {[%clk 0:00:07.9]} 70... Kg7 {[%clk 0:00:02.8]} 71.
f6+ {[%clk 0:00:07.4]} 71... Kf8 {[%clk 0:00:03.1]} 72. Kg6 {[%clk 0:00:07.6]}
72... Ke8 {[%clk 0:00:03.5]} 73. Kg7 {[%clk 0:00:08]} 73... Kd7 {[%clk
0:00:03.4]} 74. f7 {[%clk 0:00:08.3]} 74... Kd6 {[%clk 0:00:03.4]} 75. f8=Q+
{[%clk 0:00:08.6]} 75... Kxd5 {[%clk 0:00:03.6]} 76. Qf6 {[%clk 0:00:09.5]}
76... Ke4 {[%clk 0:00:03.3]} 77. Kg6 {[%clk 0:00:10.4]} 77... Kd3 {[%clk
0:00:02.9]} 78. Qf5+ {[%clk 0:00:11.3]} 78... Kc4 {[%clk 0:00:03.3]} 79. Kg5
{[%clk 0:00:12.1]} 79... Kb4 {[%clk 0:00:03.7]} 80. Kf4 {[%clk 0:00:13]} 80...
Kc4 {[%clk 0:00:04.2]} 81. Qe5 {[%clk 0:00:13.5]} 81... Kd3 {[%clk 0:00:04.2]}
82. Kf5 {[%clk 0:00:13.7]} 82... Kd2 {[%clk 0:00:04.2]} 83. Qe4 {[%clk
0:00:14.3]} 83... Kc3 {[%clk 0:00:04.3]} 84. Kf4 {[%clk 0:00:14.8]} 84... Kb2
{[%clk 0:00:04.3]} 85. Qd3 {[%clk 0:00:14.8]} 85... Ka1 {[%clk 0:00:04.9]} 86.
Qe2 {[%clk 0:00:14.9]} 86... Kb1 {[%clk 0:00:05.1]} 87. Ke3 {[%clk 0:00:15.3]}
87... Ka1 {[%clk 0:00:06]} 88. Kd3 {[%clk 0:00:15.8]} 88... Kb1 {[%clk
0:00:06.9]} 89. Kc3 {[%clk 0:00:16.3]} 89... Ka1 {[%clk 0:00:07.8]} 90. Qb2#
{[%clk 0:00:16.7]} 1-0